[Event "*** Titled Tuesday 3|2 Blitz (Late)"]
[Site "Chess.com"]
[Date "2016.12.06"]
[Round "3"]
[White "MFBerna"]
[Black "ecwinslow"]
[Result "0-1"]
[WhiteElo "2194"]
[BlackElo "2089"]
[TimeControl "180+2"]
[EndTime "17:34:08 PST"]
[Termination "ecwinslow won on time"]

1. e4 {[%clk 0:03:02]} 1... c5 {[%clk 0:02:57.5]} 2. Nf3 {[%clk 0:03:02.7]} 2...
d6 {[%clk 0:02:58.1]} 3. d4 {[%clk 0:03:03.1]} 3... cxd4 {[%clk 0:02:59.6]} 4.
Nxd4 {[%clk 0:03:05]} 4... Nf6 {[%clk 0:03:00.5]} 5. Nc3 {[%clk 0:03:06.1]} 5...
a6 {[%clk 0:03:02]} 6. Bg5 {[%clk 0:02:59.1]} 6... e6 {[%clk 0:03:02.3]} 7. f4
{[%clk 0:02:55.5]} 7... Be7 {[%clk 0:03:02.3]} 8. Qf3 {[%clk 0:02:55.1]} 8... h6
{[%clk 0:03:00.2]} 9. Bh4 {[%clk 0:02:54.6]} 9... Qc7 {[%clk 0:03:00.5]} 10.
O-O-O {[%clk 0:02:51.3]} 10... Nbd7 {[%clk 0:03:01]} 11. f5 {[%clk 0:02:36.8]}
11... e5 {[%clk 0:02:56.7]} 12. Nb3 {[%clk 0:02:32.3]} 12... b5 {[%clk
0:02:52.7]} 13. g4 {[%clk 0:02:15.5]} 13... Bb7 {[%clk 0:02:49.1]} 14. Bd3
{[%clk 0:01:56.5]} 14... b4 {[%clk 0:02:40.5]} 15. Ne2 {[%clk 0:01:43.8]} 15...
a5 {[%clk 0:02:20.7]} 16. Ng3 {[%clk 0:01:21]} 16... a4 {[%clk 0:02:15.3]} 17.
Nd2 {[%clk 0:01:21.4]} 17... Nc5 {[%clk 0:01:52.5]} 18. Bxf6 {[%clk 0:01:10.7]}
18... gxf6 {[%clk 0:01:38]} 19. Bc4 {[%clk 0:00:59.9]} 19... Ba6 {[%clk
0:01:20]} 20. Qe2 {[%clk 0:00:46.6]} 20... b3 {[%clk 0:00:55.6]} 21. Bxa6 {[%clk
0:00:38.8]} 21... Rxa6 {[%clk 0:00:55.2]} 22. Qb5+ {[%clk 0:00:38.7]} 22... Kf8
{[%clk 0:00:45.7]} 23. Nc4 {[%clk 0:00:22.9]} 23... bxa2 {[%clk 0:00:30.4]} 24.
Kd2 {[%clk 0:00:23.5]} 24... h5 {[%clk 0:00:20.7]} 25. gxh5 {[%clk 0:00:23.3]}
25... Kg7 {[%clk 0:00:18.8]} 26. Rhg1 {[%clk 0:00:20.4]} 26... Kh6 {[%clk
0:00:18.7]} 27. Ke2 {[%clk 0:00:19.2]} 27... Rb8 {[%clk 0:00:18.8]} 28. Nb6
{[%clk 0:00:03.3]} 28... Raxb6 {[%clk 0:00:15.7]} 29. Qc4 {[%clk 0:00:05.2]}
29... Bf8 {[%clk 0:00:12.3]} 30. Nf1 {[%clk 0:00:05.2]} 30... Rxb2 {[%clk
0:00:11.2]} 31. Ne3 {[%clk 0:00:05.7]} 31... R2b4 {[%clk 0:00:06.4]} 32. Qxa2
{[%clk 0:00:04.5]} 32... Nxe4 {[%clk 0:00:05]} 33. Nd5 {[%clk 0:00:04.5]} 33...
Qc4+ {[%clk 0:00:04]} 34. Qxc4 {[%clk 0:00:05]} 34... Rxc4 {[%clk 0:00:05.5]}
35. Kf3 {[%clk 0:00:04.6]} 35... Rd4 {[%clk 0:00:04.9]} 36. Rxd4 {[%clk
0:00:05.2]} 36... Ng5+ {[%clk 0:00:05.9]} 37. Rxg5 {[%clk 0:00:04.9]} 37... Kxg5
{[%clk 0:00:06.7]} 38. Rxa4 {[%clk 0:00:04.1]} 38... Kxf5 {[%clk 0:00:07.7]} 39.
h6 {[%clk 0:00:03.3]} 39... Bxh6 {[%clk 0:00:07.1]} 40. Rh4 {[%clk 0:00:02.9]}
40... Bg5 {[%clk 0:00:07.5]} 0-1

[Event "*** Titled Tuesday 3|2 Blitz (Late)"]
[Site "Chess.com"]
[Date "2016.12.06"]
[Round "3"]
[White "Hikaru"]
[Black "KNVB"]
[Result "1-0"]
[WhiteElo "2912"]
[BlackElo "2540"]
[TimeControl "180+2"]
[EndTime "17:34:17 PST"]
[Termination "Hikaru won by resignation"]

1. d4 {[%clk 0:03:02]} 1... d5 {[%clk 0:02:55.9]} 2. Bf4 {[%clk 0:03:02.3]} 2...
Nf6 {[%clk 0:02:51.7]} 3. e3 {[%clk 0:03:03.4]} 3... e6 {[%clk 0:02:52.4]} 4. c4
{[%clk 0:03:04]} 4... Bd6 {[%clk 0:02:52]} 5. Bxd6 {[%clk 0:03:03.6]} 5... cxd6
{[%clk 0:02:49.9]} 6. Nc3 {[%clk 0:03:04.1]} 6... dxc4 {[%clk 0:02:49.7]} 7.
Bxc4 {[%clk 0:03:05.8]} 7... O-O {[%clk 0:02:50.6]} 8. Nf3 {[%clk 0:03:06.8]}
8... b6 {[%clk 0:02:49.4]} 9. Bd3 {[%clk 0:03:05.8]} 9... Bb7 {[%clk 0:02:41.7]}
10. e4 {[%clk 0:03:06.8]} 10... Nc6 {[%clk 0:02:35.8]} 11. O-O {[%clk
0:03:06.9]} 11... Rc8 {[%clk 0:02:34.5]} 12. Rc1 {[%clk 0:03:05.3]} 12... Qe7
{[%clk 0:02:25.4]} 13. a3 {[%clk 0:03:04.9]} 13... Rfd8 {[%clk 0:02:26.5]} 14.
Qe2 {[%clk 0:03:00]} 14... e5 {[%clk 0:02:06.9]} 15. Nd5 {[%clk 0:02:43.7]}
15... Nxd5 {[%clk 0:01:24.9]} 16. exd5 {[%clk 0:02:45.6]} 16... Nb8 {[%clk
0:01:26.5]} 17. dxe5 {[%clk 0:02:18.3]} 17... Rxc1 {[%clk 0:01:16.4]} 18. Rxc1
{[%clk 0:02:18]} 18... Bxd5 {[%clk 0:01:15.5]} 19. Bxh7+ {[%clk 0:02:15.9]}
19... Kxh7 {[%clk 0:01:16.3]} 20. Qd3+ {[%clk 0:02:16.9]} 20... Kg8 {[%clk
0:00:50.8]} 21. Qxd5 {[%clk 0:02:17.3]} 21... dxe5 {[%clk 0:00:51.9]} 22. Qxe5
{[%clk 0:02:19]} 22... Qxe5 {[%clk 0:00:50.7]} 23. Nxe5 {[%clk 0:02:20.9]} 23...
Na6 {[%clk 0:00:51.9]} 24. g3 {[%clk 0:02:14.4]} 24... Nc5 {[%clk 0:00:42.3]}
25. b4 {[%clk 0:02:15.5]} 25... Ne6 {[%clk 0:00:43.6]} 26. h4 {[%clk 0:02:16.4]}
26... f6 {[%clk 0:00:36.1]} 27. Nc6 {[%clk 0:02:17.5]} 27... Rd7 {[%clk
0:00:28]} 28. Kg2 {[%clk 0:02:14.7]} 28... Kf7 {[%clk 0:00:28.5]} 29. Rc4 {[%clk
0:02:09.2]} 29... a6 {[%clk 0:00:17.3]} 30. Nb8 {[%clk 0:02:04.1]} 30... Rd3
{[%clk 0:00:18]} 31. Nxa6 {[%clk 0:01:58]} 31... Rxa3 {[%clk 0:00:18.9]} 32. Nc7
{[%clk 0:01:59.4]} 32... Nd8 {[%clk 0:00:05.4]} 33. Nd5 {[%clk 0:01:55.9]} 33...
b5 {[%clk 0:00:06.7]} 34. Rc7+ {[%clk 0:01:56.7]} 34... Kf8 {[%clk 0:00:06.3]}
35. Nf4 {[%clk 0:01:57.2]} 35... Rb3 {[%clk 0:00:02.4]} 36. Rd7 {[%clk
0:01:43.4]} 36... Ke8 {[%clk 0:00:02.9]} 37. Rxg7 {[%clk 0:01:43.8]} 37... Rxb4
{[%clk 0:00:04.5]} 38. Nd5 {[%clk 0:01:44.6]} 38... Rd4 {[%clk 0:00:04.1]} 39.
Nxf6+ {[%clk 0:01:37.2]} 39... Kf8 {[%clk 0:00:04.7]} 40. Ra7 {[%clk 0:01:38.6]}
40... Rd6 {[%clk 0:00:03.4]} 41. Rd7 {[%clk 0:01:30.9]} 41... Rxd7 {[%clk
0:00:03.8]} 42. Nxd7+ {[%clk 0:01:32.8]} 42... Ke7 {[%clk 0:00:05.6]} 43. Nc5
{[%clk 0:01:34.7]} 43... Kd6 {[%clk 0:00:06.9]} 44. Nb3 {[%clk 0:01:35.8]} 44...
Kd5 {[%clk 0:00:08.2]} 45. h5 {[%clk 0:01:37]} 45... Kc4 {[%clk 0:00:09.1]} 46.
Na5+ {[%clk 0:01:37.1]} 46... Kc5 {[%clk 0:00:09.2]} 47. g4 {[%clk 0:01:29.3]}
47... b4 {[%clk 0:00:09.5]} 48. g5 {[%clk 0:01:28.9]} 48... Ne6 {[%clk
0:00:10.2]} 49. g6 {[%clk 0:01:08.7]} 49... Nf4+ {[%clk 0:00:11.5]} 50. Kf3
{[%clk 0:01:10.3]} 50... Nxh5 {[%clk 0:00:13.4]} 51. Kg4 {[%clk 0:01:12.2]}
51... Ng7 {[%clk 0:00:11.8]} 52. Kg5 {[%clk 0:01:13.5]} 52... Kb5 {[%clk
0:00:13.4]} 53. Nb3 {[%clk 0:01:14.5]} 53... Kc4 {[%clk 0:00:15.1]} 54. Nc1
{[%clk 0:01:16.1]} 54... Kd5 {[%clk 0:00:08.5]} 55. f3 {[%clk 0:01:10.1]} 55...
Ke5 {[%clk 0:00:04]} 56. Nd3+ {[%clk 0:01:09.7]} 56... Ke6 {[%clk 0:00:03.2]}
57. Nxb4 {[%clk 0:01:10.4]} 57... Ke7 {[%clk 0:00:04.7]} 58. Nd5+ {[%clk
0:01:11]} 58... Kf8 {[%clk 0:00:05.8]} 59. Nc7 {[%clk 0:01:10.1]} 59... Ke7
{[%clk 0:00:02.8]} 60. f4 {[%clk 0:01:10.6]} 1-0

[Event "*** Titled Tuesday 3|2 Blitz (Late)"]
[Site "Chess.com"]
[Date "2016.12.06"]
[Round "3"]
[White "GianmarcoVaR"]
[Black "Noukii"]
[Result "0-1"]
[WhiteElo "2404"]
[BlackElo "2653"]
[TimeControl "180+2"]
[EndTime "17:34:35 PST"]
[Termination "Noukii won by resignation"]

1. d4 {[%clk 0:03:02]} 1... Nf6 {[%clk 0:02:51.2]} 2. c4 {[%clk 0:03:00]} 2...
c6 {[%clk 0:02:52]} 3. Nf3 {[%clk 0:02:51.4]} 3... d5 {[%clk 0:02:53.6]} 4. e3
{[%clk 0:02:51.6]} 4... Bf5 {[%clk 0:02:54.1]} 5. Nc3 {[%clk 0:02:52.2]} 5... e6
{[%clk 0:02:55.6]} 6. Nh4 {[%clk 0:02:52.8]} 6... Be4 {[%clk 0:02:57.2]} 7. f3
{[%clk 0:02:53.2]} 7... Bg6 {[%clk 0:02:58.8]} 8. Qb3 {[%clk 0:02:54.4]} 8...
Qc7 {[%clk 0:03:00.3]} 9. g3 {[%clk 0:02:44.2]} 9... Be7 {[%clk 0:03:01.6]} 10.
Bd2 {[%clk 0:02:39.4]} 10... O-O {[%clk 0:03:02.7]} 11. Nxg6 {[%clk 0:02:29.1]}
11... hxg6 {[%clk 0:03:03.6]} 12. cxd5 {[%clk 0:02:28.3]} 12... cxd5 {[%clk
0:03:01.3]} 13. Rc1 {[%clk 0:02:25.5]} 13... Nc6 {[%clk 0:03:02.9]} 14. Be2
{[%clk 0:02:20]} 14... Rac8 {[%clk 0:02:55.7]} 15. Kf2 {[%clk 0:02:11.5]} 15...
Rfd8 {[%clk 0:02:38]} 16. Rhd1 {[%clk 0:02:07.8]} 16... a6 {[%clk 0:02:30.6]}
17. Kg2 {[%clk 0:01:49.9]} 17... Na5 {[%clk 0:02:02.7]} 18. Qc2 {[%clk
0:01:35.9]} 18... Nc4 {[%clk 0:02:01.2]} 19. Bxc4 {[%clk 0:01:12.8]} 19... dxc4
{[%clk 0:02:01.8]} 20. Ne2 {[%clk 0:01:11.6]} 20... b5 {[%clk 0:01:55.6]} 21. e4
{[%clk 0:01:07.5]} 21... Qb7 {[%clk 0:01:56.2]} 22. Ba5 {[%clk 0:01:04.5]} 22...
Re8 {[%clk 0:01:52.9]} 23. a3 {[%clk 0:01:05.9]} 23... g5 {[%clk 0:01:48.5]} 24.
h3 {[%clk 0:01:05.7]} 24... Nd7 {[%clk 0:01:48.2]} 25. Nc3 {[%clk 0:00:55.5]}
25... Bd8 {[%clk 0:01:41.4]} 26. Bxd8 {[%clk 0:00:52.5]} 26... Rexd8 {[%clk
0:01:42.6]} 27. d5 {[%clk 0:00:46.5]} 27... Nc5 {[%clk 0:01:41.7]} 28. Qd2
{[%clk 0:00:28]} 28... Qe7 {[%clk 0:01:33.6]} 29. Qe2 {[%clk 0:00:20.8]} 29...
Nb3 {[%clk 0:01:28.2]} 30. Rc2 {[%clk 0:00:21.1]} 30... e5 {[%clk 0:01:26.9]}
31. Qe3 {[%clk 0:00:22.3]} 31... f6 {[%clk 0:01:27.2]} 32. Re2 {[%clk
0:00:21.8]} 32... Qc5 {[%clk 0:01:27.1]} 33. Qxc5 {[%clk 0:00:20.9]} 33... Nxc5
{[%clk 0:01:29]} 34. Red2 {[%clk 0:00:20.5]} 34... Rd6 {[%clk 0:01:29.5]} 35.
Na2 {[%clk 0:00:13.2]} 35... Nb3 {[%clk 0:01:28.5]} 36. Rc2 {[%clk 0:00:14]}
36... a5 {[%clk 0:01:30]} 37. Rc3 {[%clk 0:00:14.1]} 37... Nc5 {[%clk
0:01:28.8]} 38. Rc2 {[%clk 0:00:14.9]} 38... Kf7 {[%clk 0:01:28.6]} 39. Rdc1
{[%clk 0:00:15.7]} 39... Nd3 {[%clk 0:01:28.6]} 40. Rd1 {[%clk 0:00:17]} 40...
Nc5 {[%clk 0:01:27.8]} 41. Rdc1 {[%clk 0:00:17.6]} 41... Nb3 {[%clk 0:01:29.4]}
42. Rd1 {[%clk 0:00:18.7]} 42... Ke7 {[%clk 0:01:30.2]} 43. Kf2 {[%clk
0:00:19.5]} 43... Rh8 {[%clk 0:01:30.7]} 44. Kg2 {[%clk 0:00:20.9]} 44... Rb6
{[%clk 0:01:32]} 45. Nc3 {[%clk 0:00:21.2]} 45... Kd6 {[%clk 0:01:33.4]} 46. Na2
{[%clk 0:00:22.1]} 46... Rh7 {[%clk 0:01:33.9]} 47. Nc3 {[%clk 0:00:23.4]} 47...
Rb8 {[%clk 0:01:34.7]} 48. a4 {[%clk 0:00:24.4]} 48... Nd4 {[%clk 0:01:32.8]}
49. Nxb5+ {[%clk 0:00:23.5]} 49... Rxb5 {[%clk 0:01:33]} 50. Rxd4 {[%clk
0:00:24.7]} 50... exd4 {[%clk 0:01:33]} 51. axb5 {[%clk 0:00:25.9]} 51... Kc5
{[%clk 0:01:34.2]} 52. b6 {[%clk 0:00:23.8]} 52... Rh8 {[%clk 0:01:35.4]} 53. f4
{[%clk 0:00:25.1]} 53... gxf4 {[%clk 0:01:36.2]} 54. gxf4 {[%clk 0:00:26.5]}
54... Rb8 {[%clk 0:01:37.8]} 55. d6 {[%clk 0:00:20.4]} 55... d3 {[%clk
0:01:37.1]} 56. Rc1 {[%clk 0:00:20.6]} 56... Rxb6 {[%clk 0:01:33.9]} 57. e5
{[%clk 0:00:22.1]} 57... fxe5 {[%clk 0:01:35.3]} 58. fxe5 {[%clk 0:00:23.6]}
58... Rxb2+ {[%clk 0:01:36.3]} 59. Kf3 {[%clk 0:00:25.1]} 59... d2 {[%clk
0:01:32.5]} 60. Rd1 {[%clk 0:00:26.5]} 60... c3 {[%clk 0:01:34]} 61. d7 {[%clk
0:00:27.8]} 61... Rb8 {[%clk 0:01:35.5]} 62. Ke4 {[%clk 0:00:10.9]} 62... c2
{[%clk 0:01:35.2]} 63. Rxd2 {[%clk 0:00:12.4]} 63... c1=Q {[%clk 0:01:36.6]} 64.
d8=Q {[%clk 0:00:13.7]} 64... Rxd8 {[%clk 0:01:37.7]} 65. Rxd8 {[%clk
0:00:15.5]} 65... Qc4+ {[%clk 0:01:37.8]} 66. Kf5 {[%clk 0:00:16.3]} 66... Qf7+
{[%clk 0:01:39.3]} 67. Ke4 {[%clk 0:00:17.3]} 67... Qg6+ {[%clk 0:01:39.9]} 68.
Kf4 {[%clk 0:00:18.3]} 68... Qh6+ {[%clk 0:01:41.3]} 69. Kf5 {[%clk 0:00:19.6]}
69... Qxh3+ {[%clk 0:01:41.5]} 70. Kg6 {[%clk 0:00:21]} 70... Qg4+ {[%clk
0:01:41.1]} 71. Kf7 {[%clk 0:00:22.2]} 71... Qf5+ {[%clk 0:01:42.4]} 72. Kg8
{[%clk 0:00:22.6]} 72... Qxe5 {[%clk 0:01:43]} 73. Ra8 {[%clk 0:00:23.1]} 73...
Kb4 {[%clk 0:01:44]} 0-1

[Event "*** Titled Tuesday 3|2 Blitz (Late)"]
[Site "Chess.com"]
[Date "2016.12.06"]
[Round "3"]
[White "MaestroASK"]
[Black "tango_argentino"]
[Result "1/2-1/2"]
[WhiteElo "2450"]
[BlackElo "2358"]
[TimeControl "180+2"]
[EndTime "17:36:33 PST"]
[Termination "Game drawn by repetition"]

1. g3 {[%clk 0:02:52.9]} 1... g6 {[%clk 0:02:59.7]} 2. d3 {[%clk 0:02:54.1]}
2... Bg7 {[%clk 0:03:00.7]} 3. c3 {[%clk 0:02:55.6]} 3... Nf6 {[%clk 0:03:01.2]}
4. Bg2 {[%clk 0:02:56.5]} 4... e5 {[%clk 0:03:02.2]} 5. e4 {[%clk 0:02:57.3]}
5... O-O {[%clk 0:03:02.8]} 6. Nh3 {[%clk 0:02:57.5]} 6... d5 {[%clk 0:03:03.3]}
7. f3 {[%clk 0:02:57.7]} 7... dxe4 {[%clk 0:03:01.7]} 8. dxe4 {[%clk 0:02:58.4]}
8... Qxd1+ {[%clk 0:03:02.3]} 9. Kxd1 {[%clk 0:02:59.8]} 9... Nbd7 {[%clk
0:02:59.6]} 10. Nf2 {[%clk 0:02:58.8]} 10... a5 {[%clk 0:02:57.9]} 11. a4 {[%clk
0:02:58.6]} 11... Nc5 {[%clk 0:02:58.2]} 12. Kc2 {[%clk 0:02:58]} 12... Be6
{[%clk 0:02:55.7]} 13. Nd2 {[%clk 0:02:58.1]} 13... Rfd8 {[%clk 0:02:51.6]} 14.
Bh3 {[%clk 0:02:55.6]} 14... Ne8 {[%clk 0:02:41.3]} 15. Bxe6 {[%clk 0:02:53.6]}
15... Nxe6 {[%clk 0:02:41.9]} 16. Nd3 {[%clk 0:02:51.1]} 16... Nd6 {[%clk
0:02:38.3]} 17. b3 {[%clk 0:02:51.2]} 17... f6 {[%clk 0:02:34.6]} 18. Ba3 {[%clk
0:02:50.5]} 18... Kf7 {[%clk 0:02:31.3]} 19. Rhd1 {[%clk 0:02:43.4]} 19... Bf8
{[%clk 0:02:27.1]} 20. Bxd6 {[%clk 0:02:42.9]} 20... Bxd6 {[%clk 0:02:22.9]} 21.
Nc4 {[%clk 0:02:43.3]} 21... Be7 {[%clk 0:02:19.7]} 22. Rd2 {[%clk 0:02:42.1]}
22... Ng5 {[%clk 0:02:14.9]} 23. Rf1 {[%clk 0:02:38.9]} 23... b6 {[%clk
0:02:10.8]} 24. h4 {[%clk 0:02:38.7]} 24... Ne6 {[%clk 0:02:11.4]} 25. f4 {[%clk
0:02:38.2]} 25... exf4 {[%clk 0:02:08.8]} 26. gxf4 {[%clk 0:02:32.1]} 26... Nc5
{[%clk 0:02:09.9]} 27. Nxc5 {[%clk 0:02:27.1]} 27... Rxd2+ {[%clk 0:02:11.1]}
28. Kxd2 {[%clk 0:02:24.5]} 28... Bxc5 {[%clk 0:02:12]} 29. f5 {[%clk
0:02:24.9]} 29... Re8 {[%clk 0:02:03.4]} 30. Kd3 {[%clk 0:02:21.8]} 30... Rd8+
{[%clk 0:02:03.9]} 31. Ke2 {[%clk 0:02:18.2]} 31... Rg8 {[%clk 0:01:55.1]} 32.
fxg6+ {[%clk 0:02:08]} 32... hxg6 {[%clk 0:01:53]} 33. Ne5+ {[%clk 0:02:03]}
33... Ke6 {[%clk 0:01:47.7]} 34. Nd3 {[%clk 0:02:03.2]} 34... Bd6 {[%clk
0:01:47.4]} 35. Rh1 {[%clk 0:02:02.6]} 35... f5 {[%clk 0:01:45.2]} 36. exf5+
{[%clk 0:02:02.1]} 36... Kxf5 {[%clk 0:01:42.8]} 37. Kf3 {[%clk 0:02:01.3]}
37... Rf8 {[%clk 0:01:42.5]} 38. b4 {[%clk 0:01:56.3]} 38... Ra8 {[%clk
0:01:38.4]} 39. b5 {[%clk 0:01:56.5]} 39... Rh8 {[%clk 0:01:38.7]} 40. Nf2
{[%clk 0:01:50.6]} 40... Be7 {[%clk 0:01:29.3]} 41. Kg3 {[%clk 0:01:39.3]} 41...
Rh5 {[%clk 0:01:26.8]} 42. Rh3 {[%clk 0:01:30.9]} 42... Bf6 {[%clk 0:01:23.4]}
43. c4 {[%clk 0:01:31]} 43... Be5+ {[%clk 0:01:19.4]} 44. Kf3 {[%clk 0:01:31.6]}
44... Rh8 {[%clk 0:01:17.4]} 45. Ng4 {[%clk 0:01:27.1]} 45... Bd6 {[%clk
0:01:14.5]} 46. Ne3+ {[%clk 0:01:26.9]} 46... Ke5 {[%clk 0:01:13.3]} 47. Rg3
{[%clk 0:01:26.1]} 47... Rxh4 {[%clk 0:01:03.2]} 48. Rxg6 {[%clk 0:01:26]} 48...
Bc5 {[%clk 0:01:04]} 49. Ng4+ {[%clk 0:01:15.5]} 49... Kd4 {[%clk 0:01:03.1]}
50. Rc6 {[%clk 0:01:15.2]} 50... Kxc4 {[%clk 0:01:02.8]} 51. Rxc7 {[%clk
0:01:14.7]} 51... Kb4 {[%clk 0:01:04.3]} 52. Nf6 {[%clk 0:01:05.4]} 52... Kxa4
{[%clk 0:01:04]} 53. Ne4 {[%clk 0:01:05.6]} 53... Kxb5 {[%clk 0:01:04.9]} 54.
Nxc5 {[%clk 0:01:05.7]} 54... bxc5 {[%clk 0:01:06.8]} 55. Rb7+ {[%clk
0:01:05.7]} 55... Kc4 {[%clk 0:01:07.6]} 56. Ra7 {[%clk 0:01:05]} 56... Kb4
{[%clk 0:01:03.6]} 57. Rb7+ {[%clk 0:01:05.9]} 57... Kc3 {[%clk 0:01:03.6]} 58.
Ke2 {[%clk 0:01:00.4]} 58... Rd4 {[%clk 0:01:03.8]} 59. Rb5 {[%clk 0:00:59.7]}
59... a4 {[%clk 0:01:02.6]} 60. Rxc5+ {[%clk 0:01:00.7]} 60... Kb4 {[%clk
0:01:03]} 61. Rc8 {[%clk 0:01:00.8]} 61... a3 {[%clk 0:01:04.4]} 62. Rb8+ {[%clk
0:01:01.5]} 62... Kc3 {[%clk 0:01:05.8]} 63. Ra8 {[%clk 0:00:56.2]} 63... Kb2
{[%clk 0:01:05.8]} 64. Rb8+ {[%clk 0:00:56.5]} 64... Ka1 {[%clk 0:01:06]} 65.
Ke3 {[%clk 0:00:55.3]} 65... Rd7 {[%clk 0:01:06.4]} 66. Ke2 {[%clk 0:00:55.9]}
66... a2 {[%clk 0:00:36.4]} 67. Ke1 {[%clk 0:00:55.1]} 67... Rd6 {[%clk
0:00:34.5]} 68. Ke2 {[%clk 0:00:55.8]} 68... Rh6 {[%clk 0:00:34.8]} 69. Kd2
{[%clk 0:00:56]} 69... Rh2+ {[%clk 0:00:34.6]} 70. Kc1 {[%clk 0:00:56.6]} 70...
Rh1+ {[%clk 0:00:35.8]} 71. Kc2 {[%clk 0:00:57.4]} 71... Rh2+ {[%clk 0:00:36.6]}
72. Kc1 {[%clk 0:00:58.2]} 72... Rh7 {[%clk 0:00:37.4]} 73. Rc8 {[%clk 0:00:51]}
73... Rb7 {[%clk 0:00:36.5]} 74. Kc2 {[%clk 0:00:49.8]} 74... Rb2+ {[%clk
0:00:34.7]} 75. Kc1 {[%clk 0:00:50.2]} 75... Rb1+ {[%clk 0:00:35.7]} 76. Kc2
{[%clk 0:00:51]} 76... Rb7 {[%clk 0:00:36.7]} 77. Kc1 {[%clk 0:00:51.6]} 77...
Rh7 {[%clk 0:00:36.5]} 78. Kc2 {[%clk 0:00:52.2]} 78... Rh1 {[%clk 0:00:37.1]}
79. Rc7 {[%clk 0:00:52.2]} 79... Rh8 {[%clk 0:00:38]} 80. Kc1 {[%clk 0:00:52.6]}
80... Rf8 {[%clk 0:00:36.9]} 81. Kc2 {[%clk 0:00:50.3]} 81... Rf1 {[%clk
0:00:37.5]} 82. Rc8 {[%clk 0:00:50.4]} 82... Rb1 {[%clk 0:00:38.3]} 83. Rc7
{[%clk 0:00:50.2]} 83... Rb2+ {[%clk 0:00:39.7]} 84. Kc1 {[%clk 0:00:50.7]}
84... Rb1+ {[%clk 0:00:40.7]} 85. Kc2 {[%clk 0:00:51.7]} 85... Rb2+ {[%clk
0:00:41.8]} 86. Kc1 {[%clk 0:00:52.6]} 86... Rb1+ {[%clk 0:00:43.4]} 87. Kc2
{[%clk 0:00:53.6]} 87... Rb2+ {[%clk 0:00:44.9]} 88. Kc1 {[%clk 0:00:54.6]}
88... Rb1+ {[%clk 0:00:46.5]} 89. Kc2 {[%clk 0:00:55.5]} 89... Rb2+ {[%clk
0:00:48]} 90. Kc1 {[%clk 0:00:56.3]} 90... Rb1+ {[%clk 0:00:49.6]} 1/2-1/2

[Event "*** Titled Tuesday 3|2 Blitz (Late)"]
[Site "Chess.com"]
[Date "2016.12.06"]
[Round "4"]
[White "Rating-Schmating"]
[Black "Rumpel-VK"]
[Result "0-1"]
[WhiteElo "2240"]
[BlackElo "2457"]
[TimeControl "180+2"]
[EndTime "17:40:35 PST"]
[Termination "Rumpel-VK won by resignation"]

1. e4 {[%clk 0:03:01.9]} 1... d6 {[%clk 0:02:59.7]} 2. d4 {[%clk 0:03:02.1]}
2... Nf6 {[%clk 0:03:01.2]} 3. Nc3 {[%clk 0:03:02.7]} 3... e5 {[%clk 0:03:02.7]}
4. dxe5 {[%clk 0:03:03.6]} 4... dxe5 {[%clk 0:03:03]} 5. Qxd8+ {[%clk
0:03:04.7]} 5... Kxd8 {[%clk 0:03:04.4]} 6. Bc4 {[%clk 0:03:06.3]} 6... Ke8
{[%clk 0:03:05.9]} 7. Nf3 {[%clk 0:03:06.9]} 7... Bd6 {[%clk 0:03:07.4]} 8. Be3
{[%clk 0:03:07.1]} 8... a6 {[%clk 0:03:08.9]} 9. h3 {[%clk 0:03:08.1]} 9... Nc6
{[%clk 0:03:09.8]} 10. a4 {[%clk 0:03:06.2]} 10... h6 {[%clk 0:03:09.3]} 11.
O-O-O {[%clk 0:03:06.4]} 11... Be6 {[%clk 0:03:05.2]} 12. Bd5 {[%clk 0:03:01.9]}
12... Bxd5 {[%clk 0:02:58.7]} 13. exd5 {[%clk 0:03:02.2]} 13... Na5 {[%clk
0:02:58.7]} 14. b3 {[%clk 0:02:57.1]} 14... b6 {[%clk 0:02:57.2]} 15. Nd2 {[%clk
0:02:54.8]} 15... Kd7 {[%clk 0:02:52.3]} 16. Nde4 {[%clk 0:02:54]} 16... Nxe4
{[%clk 0:02:52.3]} 17. Nxe4 {[%clk 0:02:54.9]} 17... f5 {[%clk 0:02:50.6]} 18.
Nxd6 {[%clk 0:02:52.9]} 18... Kxd6 {[%clk 0:02:51.4]} 19. Kb2 {[%clk 0:02:52.5]}
19... Nb7 {[%clk 0:02:50]} 20. c4 {[%clk 0:02:47.7]} 20... a5 {[%clk 0:02:50]}
21. g3 {[%clk 0:02:48]} 21... Nc5 {[%clk 0:02:46.9]} 22. Bxc5+ {[%clk
0:02:48.6]} 22... Kxc5 {[%clk 0:02:42.2]} 23. Kc3 {[%clk 0:02:48.9]} 23... Rad8
{[%clk 0:02:41.3]} 24. Rhe1 {[%clk 0:02:49.5]} 24... e4 {[%clk 0:02:42.1]} 25.
Re3 {[%clk 0:02:47.1]} 25... Rhe8 {[%clk 0:02:41.9]} 26. Rde1 {[%clk 0:02:47.9]}
26... c6 {[%clk 0:02:40]} 27. dxc6 {[%clk 0:02:47.7]} 27... Kxc6 {[%clk
0:02:41.3]} 28. f3 {[%clk 0:02:46.8]} 28... exf3 {[%clk 0:02:42.5]} 29. Rxe8
{[%clk 0:02:33.4]} 29... Rxe8 {[%clk 0:02:43.4]} 30. Rf1 {[%clk 0:02:31.9]}
30... Re3+ {[%clk 0:02:44.1]} 31. Kc2 {[%clk 0:02:29.3]} 31... g5 {[%clk
0:02:45]} 32. g4 {[%clk 0:02:28]} 32... f4 {[%clk 0:02:42]} 33. Kb2 {[%clk
0:02:22.8]} 33... Kc5 {[%clk 0:02:43.1]} 34. Kc2 {[%clk 0:02:23.5]} 34... Kb4
{[%clk 0:02:44.1]} 35. Rf2 {[%clk 0:02:22.5]} 35... Re2+ {[%clk 0:02:43.3]} 36.
Rxe2 {[%clk 0:02:23.3]} 36... fxe2 {[%clk 0:02:44.4]} 37. Kd2 {[%clk 0:02:25]}
37... f3 {[%clk 0:02:45.4]} 38. Ke1 {[%clk 0:02:25.6]} 38... Kxb3 {[%clk
0:02:46.3]} 39. c5 {[%clk 0:02:27.3]} 39... bxc5 {[%clk 0:02:47.2]} 0-1